bitfinex-derivatives/quotes_SOLF0:USTF0_20250419
["timestamp","ask_amount","ask_price","bid_price","bid_amount"]
[1745049914833,5.75851284,138.64,138.6,5.75851284]
[1745049915035,4.82312298,138.63,138.6,5.75851284]
[1745049915237,4.82312298,138.62,138.6,5.75851284]
[1745049915442,5.75851284,138.64,138.6,5.75851284]
[1745049915742,4.82398024,138.63,138.6,5.75851284]
[1745049916043,4.82398024,138.62,138.6,5.75851284]
[1745049916232,5.75851284,138.64,138.6,5.75851284]
[1745049916431,4.82411046,138.63,138.6,5.75851284]
[1745049916631,4.82411046,138.62,138.58,31.09851284]
[1745049916831,5.75851284,138.64,138.58,31.09851284]
[1745049917041,4.82452657,138.63,138.58,31.09851284]
[1745049917239,4.82452657,138.62,138.58,31.09851284]
[1745049917541,5.75851284,138.64,138.58,31.09851284]
[1745049917743,4.82500669,138.63,138.58,31.09851284]
[1745049917942,4.82500669,138.62,138.58,31.09851284]
[1745049918139,5.75851284,138.64,138.58,31.09851284]
[1745049918438,4.82512989,138.63,138.58,31.09851284]
[1745049918639,4.82512989,138.62,138.58,31.09851284]
[1745049918838,5.75851284,138.64,138.58,31.09851284]
[1745049919039,4.82554471,138.63,138.58,31.09851284]
[1745049919235,4.82554471,138.62,138.58,31.09851284]
[1745049919438,4.82607919,138.61,138.58,31.09851284]
[1745049919641,5.75851284,138.64,138.58,31.09851284]
[1745049919842,4.82608555,138.63,138.58,31.09851284]
[1745049920041,4.82608555,138.62,138.58,31.09851284]
[1745049920245,4.82608555,138.61,138.58,31.09851284]
[1745049920445,5.75851284,138.64,138.58,31.09851284]
[1745049920646,9.23096174,138.63,138.58,31.09851284]
[1745049920846,4.82660758,138.62,138.58,31.09851284]
[1745049921047,4.82660758,138.61,138.58,31.09851284]
[1745049921245,4.40435416,138.61,138.58,31.09851284]
[1745049921747,4.40435416,138.6,138.58,31.09851284]
[1745049922248,5.75851284,138.64,138.58,31.09851284]
[1745049922448,4.82782922,138.63,138.58,31.09851284]
[1745049922649,9.23330129,138.62,138.58,31.09851284]
[1745049922854,4.82782922,138.61,138.58,31.09851284]
[1745049923050,4.40547207,138.62,138.58,31.09851284]
[1745049923346,9.23330129,138.61,138.58,31.09851284]
[1745049923547,4.40547207,138.61,138.58,31.09851284]
[1745049923949,4.40547207,138.6,138.58,31.09851284]
[1745049924248,5.75851284,138.64,138.58,31.09851284]
[1745049924446,4.82840914,138.63,138.58,31.09851284]
[1745049924649,9.23440724,138.62,138.58,31.09851284]
[1745049924849,4.82840914,138.61,138.58,31.09851284]
[1745049925051,4.4059981,138.6,138.58,31.09851284]
[1745049925754,5.75851284,138.64,138.58,31.09851284]
[1745049925944,4.82833624,138.63,138.58,31.09851284]
[1745049926149,4.82833624,138.62,138.58,31.09851284]
[1745049926352,9.23427098,138.61,138.58,31.09851284]
[1745049926650,4.40593474,138.6,138.58,31.09851284]
[1745049927555,5.75851284,138.64,138.58,31.09851284]
[1745049927851,9.23378746,138.63,138.58,31.09851284]
[1745049928056,4.82808675,138.62,138.58,31.09851284]
[1745049928250,4.82808675,138.61,138.58,31.09851284]
[1745049928449,4.40570071,138.6,138.58,31.09851284]
[1745049928754,5.75851284,138.62,138.58,25.34]
[1745049928953,5.75851284,138.6,138.58,25.34]
[1745049929153,4.40616397,138.59,138.58,25.34]
[1745049929552,4.40616397,138.59,138.55,31.47851284]
[1745049929553,9.23471411,138.59,138.55,31.47851284]
[1745049929856,4.40616397,138.59,138.55,31.47851284]
[1745049930154,4.40616397,138.58,138.55,31.47851284]
[1745049930656,4.40616397,138.57,138.55,31.47851284]
[1745049930956,5.52663714,138.56,138.53,579.77601284]
[1745049931155,5.52663714,138.55,138.54,25.72]
[1745049932958,5.50318387,138.55,138.54,25.72]
[1745049933761,5.5027702,138.55,138.54,25.72]
[1745049935653,5.50195898,138.55,138.54,25.72]
[1745049937261,5.50150147,138.55,138.54,25.72]
[1745049938263,5.50150147,138.55,138.53,596.98]
[1745049938461,5.50150147,138.54,138.53,25.72]
[1745049939765,5.75851284,138.6,138.53,25.72]
[1745049939967,5.49996289,138.59,138.54,5.75851284]
[1745049940160,5.49996289,138.58,138.54,5.75851284]
[1745049940462,5.49996289,138.57,138.54,5.75851284]
[1745049940764,5.49996289,138.56,138.54,5.75851284]
[1745049940963,5.49996289,138.55,138.54,5.75851284]
[1745049941562,12.97411284,138.6,138.54,5.75851284]
[1745049941763,5.49938577,138.59,138.54,5.75851284]
[1745049941962,11.25789861,138.58,138.53,31.47851284]
[1745049942264,5.49938577,138.57,138.53,25.72]
[1745049942465,5.49938577,138.56,138.53,31.47851284]
[1745049942764,5.49938577,138.55,138.53,31.47851284]
[1745049942966,5.49936429,138.54,138.53,25.72]
[1745049947264,5.75851284,138.6,138.53,31.47851284]
[1745049949065,5.75851284,138.58,138.53,31.47851284]
[1745049951773,29.4683,138.62,138.53,31.47851284]
[1745049951970,5.75851284,138.6,138.53,31.47851284]
[1745049959279,5.35903057,138.59,138.53,31.47851284]
[1745049959472,11.11754341,138.58,138.53,31.47851284]
[1745049959676,5.35903057,138.57,138.53,31.47851284]
[1745049959875,5.35903057,138.56,138.53,31.47851284]
[1745049960079,5.35903057,138.55,138.53,31.47851284]
[1745049960379,5.75851284,138.58,138.53,31.47851284]
[1745049960578,5.35932786,138.57,138.53,31.47851284]
[1745049960773,5.35932786,138.56,138.53,31.47851284]
[1745049961078,5.35932786,138.55,138.53,31.47851284]
[1745049961272,5.75851284,138.58,138.53,31.47851284]
[1745049961478,5.3599354,138.57,138.53,25.72]
[1745049961680,5.3599354,138.56,138.53,25.72]
[1745049961879,5.3599354,138.55,138.53,25.72]
[1745049962077,5.3599354,138.54,138.53,25.72]
[1745049964083,7.76361284,138.58,138.53,25.72]
[1745049964385,5.36048476,138.57,138.55,5.75851284]
[1745049964578,35.06681284,138.62,138.56,31.31851284]
[1745049964779,11.11858582,138.61,138.56,31.31851284]
[1745049964979,5.36007298,138.6,138.56,31.31851284]
[1745049965179,5.36007298,138.59,138.56,31.31851284]
[1745049965383,5.36007298,138.58,138.56,31.31851284]
[1745049965585,5.75851284,138.61,138.56,31.31851284]
[1745049965785,5.0947803,138.6,138.56,31.31851284]
[1745049965982,5.0947803,138.59,138.56,31.31851284]
[1745049966183,5.0947803,138.58,138.56,31.31851284]
[1745049966384,5.0947803,138.57,138.56,31.31851284]
[1745049966787,5.75851284,138.61,138.56,31.31851284]
[1745049966987,5.09556435,138.6,138.56,31.31851284]
[1745049967191,5.09556435,138.59,138.56,31.31851284]
[1745049967389,5.09556435,138.58,138.56,31.31851284]
[1745049967590,5.75851284,138.61,138.56,31.31851284]
[1745049967890,5.09627064,138.6,138.56,31.31851284]
[1745049968091,5.09627064,138.59,138.56,31.31851284]
[1745049968390,5.09635989,138.58,138.56,31.31851284]
[1745049968589,5.75851284,138.61,138.56,31.31851284]
[1745049968786,5.09710146,138.6,138.56,38.53611284]
[1745049968990,5.09710146,138.59,138.56,31.31851284]
[1745049969191,5.09670759,138.58,138.56,31.31851284]
[1745049969393,7.72631284,138.63,138.56,31.31851284]
[1745049969590,5.09736465,138.62,138.58,5.75851284]
[1745049969794,5.09736465,138.61,138.58,5.75851284]
[1745049970091,5.09736465,138.6,138.58,5.75851284]
[1745049970391,5.09736465,138.59,138.58,5.75851284]
[1745049971692,5.09824576,138.59,138.58,5.75851284]
[1745049976998,5.09824576,138.59,138.58,12.97511284]
[1745049977297,1.9678,138.63,138.58,12.97511284]
[1745049977497,1.9678,138.63,138.6,5.75851284]
[1745049977895,102.46054583,138.76,138.62,5.75851284]
[1745049978197,1.9189,138.73,138.69,5.75851284]
[1745049979001,1.9189,138.73,138.68,5.75851284]
[1745049979502,1.9189,138.73,138.68,12.96981284]
[1745049979801,5.75851284,138.74,138.7,5.75851284]
[1745049980603,3.9041,138.75,138.7,5.75851284]
[1745049980999,3.9041,138.75,138.7,12.96881284]
[1745049981199,5.75851284,138.76,138.7,31.19851284]
[1745049981804,5.75851284,138.76,138.71,7.2095]
[1745049982103,5.75851284,138.76,138.72,5.75851284]
[1745049982502,5.75851284,138.76,138.72,12.96771284]
[1745049982698,27.4377,138.77,138.72,12.96771284]
[1745049982902,1.9977,138.77,138.74,5.75851284]
[1745049984206,34.97861284,138.8,138.74,5.75851284]
[1745049985305,34.97861284,138.8,138.74,12.96671284]
[1745049985502,34.97861284,138.8,138.74,5.75851284]
[1745049989211,34.97861284,138.8,138.74,12.96661284]
[1745049991515,34.97861284,138.8,138.76,5.75851284]
[1745050002323,33.09031284,138.8,138.76,5.75851284]
[1745050002822,27.3318,138.8,138.76,5.75851284]
[1745050011235,27.3318,138.8,138.74,5.75851284]
[1745050011442,5.75851284,138.79,138.74,5.75851284]
[1745050011640,7.73901284,138.79,138.74,5.75851284]
[1745050013540,7.73901284,138.79,138.73,25.44]
[1745050013841,7.73901284,138.79,138.72,5.75851284]
[1745050022545,7.73901284,138.79,138.74,5.75851284]
[1745050022747,1.9805,138.79,138.76,5.75851284]
[1745050025843,27.3318,138.8,138.76,5.75851284]
[1745050027448,1.8918,138.8,138.76,5.75851284]
[1745050029651,5.14113001,138.79,138.78,5.75851284]
[1745050036254,9.70294412,138.79,138.78,5.75851284]
[1745050037861,3.91,138.84,138.78,5.75851284]
[1745050038161,3.91,138.84,138.81,5.75851284]
[1745050039264,3.91,138.84,138.79,5.75851284]
[1745050048865,5.75851284,138.83,138.79,5.75851284]
[1745050049367,3.91,138.84,138.79,5.75851284]
[1745050049769,4.99954754,138.83,138.79,5.75851284]
[1745050049965,4.99954754,138.82,138.79,5.75851284]
[1745050050272,4.99954754,138.81,138.79,5.75851284]
[1745050050562,4.99954754,138.8,138.79,5.75851284]
[1745050051170,9.47837402,138.8,138.79,5.75851284]
[1745050054264,4.47882648,138.8,138.79,5.75851284]
[1745050062175,9.47860013,138.8,138.79,5.75851284]
[1745050065777,4.47882648,138.8,138.79,5.75851284]
[1745050066178,9.48364849,138.8,138.79,5.75851284]
[1745050066777,9.48358381,138.8,138.79,5.75851284]
[1745050078192,5.00475733,138.8,138.79,5.75851284]
[1745050085901,5.89066126,138.8,138.79,5.75851284]
[1745050087304,27.2689,138.85,138.79,5.75851284]
[1745050087597,1.9489,138.85,138.83,5.75851284]
[1745050088099,34.85091284,138.9,138.83,5.75851284]
[1745050088300,1.9716,138.89,138.85,5.75851284]
[1745050095206,1.9716,138.89,138.87,5.75851284]
[1745050100012,4.50957806,138.88,138.87,5.75851284]
[1745050102209,4.50957806,138.88,138.87,31.03851284]
[1745050102613,25.3,138.93,138.87,31.03851284]
[1745050102814,25.3,138.93,138.89,5.75851284]
[1745050103215,4.50423181,138.92,138.89,5.75851284]
[1745050103613,25.3,138.93,138.89,5.75851284]
[1745050103914,4.50299842,138.91,138.89,5.75851284]
[1745050104323,4.50299842,138.9,138.89,5.75851284]
[1745050104616,4.50299842,138.9,138.87,31.03851284]
[1745050104818,4.50299842,138.89,138.87,5.75851284]
[1745050105118,4.50299842,138.89,138.86,5.75851284]
[1745050105417,4.50299842,138.88,138.86,5.75851284]
[1745050105814,4.50299842,138.87,138.86,5.75851284]
[1745050121524,4.50299842,138.87,138.85,25.28]
[1745050121721,4.50299842,138.87,138.84,5.75851284]
[1745050121927,4.50299842,138.86,138.84,5.75851284]
[1745050122126,4.50299842,138.86,138.83,5.75851284]
[1745050122527,4.50299842,138.85,138.83,5.75851284]
[1745050123027,4.50299842,138.84,138.83,5.75851284]
[1745050124528,9.58584583,138.84,138.83,5.75851284]
[1745050124828,4.50299842,138.84,138.83,5.75851284]
[1745050125629,5.7832,138.89,138.83,5.75851284]
[1745050125926,5.08331181,138.88,138.86,5.75851284]
[1745050126129,5.08331181,138.87,138.86,5.75851284]
[1745050126830,5.08451619,138.87,138.86,5.75851284]
[1745050132532,5.08451619,138.87,138.85,25.28]
[1745050132732,5.08451619,138.86,138.85,25.28]
[1745050134029,5.09506624,138.86,138.85,25.28]
[1745050134230,5.09506624,138.86,138.84,5.75851284]
[1745050134430,5.09506624,138.85,138.84,5.75851284]
[1745050135034,5.09506624,138.85,138.82,31.03851284]
[1745050135232,5.09506624,138.84,138.82,31.03851284]
[1745050135428,5.09506624,138.83,138.82,31.03851284]
[1745050137635,5.092664,138.83,138.82,31.03851284]
[1745050137935,9.53402174,138.83,138.82,31.03851284]
[1745050141533,9.53402174,138.83,138.81,0.29997]
[1745050141736,5.092664,138.82,138.81,0.29997]
[1745050142429,9.53402174,138.82,138.81,0.29997]
[1745050142839,9.53402174,138.82,138.79,5.75851284]
[1745050143034,5.092664,138.81,138.79,5.75851284]
[1745050143234,9.53402174,138.8,138.79,5.75851284]
[1745050145337,4.44135774,138.8,138.79,5.75851284]
[1745050145938,9.52578681,138.8,138.79,5.75851284]
[1745050146238,4.44135774,138.8,138.79,5.75851284]
[1745050146439,9.5250267,138.8,138.79,5.75851284]
[1745050147340,9.52472082,138.8,138.79,5.75851284]
[1745050150845,9.52472082,138.8,138.77,5.75851284]
[1745050151042,9.52472082,138.79,138.75,25.3]
[1745050151349,5.08336308,138.78,138.76,5.75851284]
[1745050151549,4.44135774,138.79,138.76,5.75851284]
[1745050151745,5.08122409,138.78,138.75,25.3]
[1745050151949,5.08122409,138.77,138.75,25.3]
[1745050152149,9.52314678,138.76,138.75,25.3]
[1745050152344,4.44135774,138.76,138.75,25.3]
[1745050155555,2.0381,138.78,138.75,25.3]
[1745050155754,25.3,138.8,138.77,5.75851284]
[1745050155947,5.07344539,138.79,138.77,5.75851284]
[1745050156253,5.07344539,138.78,138.77,5.75851284]
[1745050156555,25.3,138.8,138.77,5.75851284]
[1745050156853,9.49663025,138.79,138.77,5.75851284]
[1745050157154,4.42409127,138.79,138.77,5.75851284]
[1745050157354,4.42409127,138.78,138.77,5.75851284]
[1745050161059,9.49599035,138.78,138.77,5.75851284]
[1745050161256,4.42409127,138.78,138.77,5.75851284]
[1745050161458,9.49617812,138.78,138.76,5.75851284]
[1745050161757,4.42409127,138.78,138.76,5.75851284]
[1745050162059,4.42409127,138.77,138.75,25.3]
[1745050162861,5.75851284,138.79,138.74,5.75851284]
[1745050163060,5.07258615,138.78,138.74,5.75851284]
[1745050163261,5.07258615,138.77,138.72,31.05851284]
[1745050163457,5.07258615,138.76,138.72,31.05851284]
[1745050163654,3.8733,138.78,138.72,31.05851284]
[1745050163858,5.07274584,138.77,138.72,31.05851284]
[1745050164159,5.07274584,138.76,138.72,31.05851284]
[1745050164460,4.42438482,138.77,138.72,31.05851284]
[1745050164662,9.49684923,138.76,138.72,31.05851284]
[1745050164858,4.42438482,138.76,138.72,31.05851284]
[1745050165363,3.8733,138.78,138.72,31.05851284]
[1745050165662,5.07228123,138.77,138.72,31.05851284]
[1745050165862,5.07228123,138.76,138.72,31.05851284]
[1745050166062,3.8733,138.78,138.72,31.05851284]
[1745050166262,5.07228123,138.77,138.72,31.05851284]
[1745050166463,9.49603129,138.76,138.72,31.05851284]
[1745050166663,5.07241481,138.75,138.72,31.05851284]
[1745050166865,9.49616487,138.74,138.7,5.75851284]
[1745050167163,15.25455135,138.73,138.69,31.05851284]
[1745050167461,5.07228845,138.72,138.66,25.3]
[1745050167662,10.82802728,138.71,138.66,25.3]
[1745050167863,5.06951444,138.7,138.66,25.3]
[1745050168057,7.79551284,138.71,138.66,25.3]
[1745050168463,4.41840665,138.7,138.66,25.3]
[1745050168963,7.79551284,138.71,138.66,25.3]
[1745050169564,7.79551284,138.71,138.67,5.75851284]
[1745050170063,4.41538706,138.7,138.67,5.75851284]
[1745050170264,4.41538706,138.7,138.69,5.75851284]
[1745050170862,7.73281284,138.73,138.69,5.75851284]
[1745050171060,9.47373904,138.72,138.69,5.75851284]
[1745050171264,4.41365108,138.72,138.69,5.75851284]
[1745050171464,4.41365108,138.71,138.69,5.75851284]
[1745050171965,7.73281284,138.73,138.69,5.75851284]
[1745050172165,5.05825191,138.72,138.69,5.75851284]
[1745050172465,7.73281284,138.73,138.69,5.75851284]
[1745050172662,9.4672801,138.72,138.69,5.75851284]
[1745050172962,4.41064678,138.72,138.69,5.75851284]
[1745050173160,4.41064678,138.71,138.69,5.75851284]
[1745050173359,7.73281284,138.73,138.69,5.75851284]
[1745050173563,9.46502631,138.72,138.69,5.75851284]
[1745050173866,15.22331752,138.71,138.66,25.3]
[1745050174060,5.75851284,138.69,138.65,5.75851284]
[1745050174261,5.75851284,138.69,138.64,5.75851284]
[1745050175065,5.75851284,138.69,138.63,31.05851284]
[1745050175266,5.75851284,138.67,138.62,5.75851284]
[1745050176067,5.75851284,138.67,138.61,31.05851284]
[1745050177268,7.73411284,138.67,138.61,31.05851284]
[1745050185772,7.73411284,138.67,138.63,5.75851284]
[1745050185970,25.3,138.68,138.63,5.75851284]
[1745050186175,34.97581284,138.71,138.65,5.75851284]
[1745050186376,5.04620544,138.7,138.65,5.75851284]
[1745050186579,4.40264568,138.7,138.65,5.75851284]
[1745050186878,4.40264568,138.69,138.65,5.75851284]
[1745050187079,4.40264568,138.69,138.67,5.75851284]
[1745050187981,4.40264568,138.69,138.65,5.75851284]
[1745050189782,34.97581284,138.71,138.65,5.75851284]
[1745050190582,4.40533435,138.7,138.65,5.75851284]
[1745050190783,34.97581284,138.71,138.65,5.75851284]
[1745050191885,4.40656662,138.7,138.65,5.75851284]
[1745050192585,34.97581284,138.71,138.65,5.75851284]
[1745050193287,5.05391238,138.7,138.65,5.75851284]
[1745050193480,34.97581284,138.71,138.65,5.75851284]
[1745050193683,5.05531075,138.7,138.65,5.75851284]
[1745050193884,34.97581284,138.71,138.65,5.75851284]
[1745050194083,9.46484925,138.7,138.65,5.75851284]
[1745050194382,4.4095385,138.7,138.65,5.75851284]
[1745050194585,34.97581284,138.71,138.65,5.75851284]
[1745050194786,5.0573504,138.7,138.65,5.75851284]
[1745050194979,34.97581284,138.71,138.65,5.75851284]
[1745050195181,5.05735092,138.7,138.67,5.75851284]
[1745050195482,34.97581284,138.71,138.67,5.75851284]
[1745050195681,5.05928089,138.7,138.67,5.75851284]
[1745050195982,34.97581284,138.71,138.67,5.75851284]
[1745050196183,5.05910218,138.7,138.67,5.75851284]
[1745050196480,34.97581284,138.71,138.67,5.75851284]
[1745050196680,5.0606161,138.7,138.67,5.75851284]
[1745050196879,34.97581284,138.71,138.67,5.75851284]
[1745050197090,5.0606161,138.7,138.67,5.75851284]
[1745050197278,34.97581284,138.71,138.67,5.75851284]
[1745050197480,9.47647043,138.7,138.67,5.75851284]
[1745050197679,4.41494538,138.7,138.67,5.75851284]
[1745050198086,4.41494538,138.69,138.67,5.75851284]
[1745050198683,34.97581284,138.71,138.67,5.75851284]
[1745050198989,9.47801529,138.7,138.67,5.75851284]
[1745050199185,4.41565534,138.7,138.67,5.75851284]
[1745050199381,34.97581284,138.71,138.67,5.75851284]
[1745050199588,5.0634885,138.7,138.67,5.75851284]
[1745050199788,34.97581284,138.71,138.67,5.75851284]
[1745050200088,5.06345284,138.7,138.67,5.75851284]
[1745050200289,34.97581284,138.71,138.67,5.75851284]
[1745050200489,5.06411588,138.7,138.67,5.75851284]
[1745050200689,34.97581284,138.71,138.67,5.75851284]
[1745050200891,9.48227439,138.7,138.67,5.75851284]
[1745050201186,4.41763959,138.7,138.67,5.75851284]
[1745050201388,34.97581284,138.71,138.67,5.75851284]
[1745050201590,5.06647622,138.7,138.67,5.75851284]
[1745050201789,34.97581284,138.71,138.67,5.75851284]
[1745050201989,5.06647622,138.7,138.67,5.75851284]
[1745050202193,4.41924706,138.69,138.67,5.75851284]
[1745050202692,34.97581284,138.71,138.67,5.75851284]
[1745050202894,9.48959021,138.7,138.67,5.75851284]
[1745050203193,4.42104548,138.69,138.67,5.75851284]
[1745050204094,34.97581284,138.71,138.67,5.75851284]
[1745050204295,9.49411497,138.7,138.67,5.75851284]
[1745050204494,5.07095944,138.69,138.67,5.75851284]
[1745050204695,4.42315553,138.7,138.67,5.75851284]
[1745050204896,9.4969984,138.69,138.67,5.75851284]
[1745050205193,4.42315553,138.69,138.67,5.75851284]
[1745050205794,4.42315553,138.68,138.67,5.75851284]
[1745050206296,9.50347346,138.68,138.67,5.75851284]
[1745050209094,9.50979549,138.68,138.67,5.75851284]
[1745050209401,2.0293,138.76,138.67,38.29851284]
[1745050209600,25.32,138.77,138.73,5.75851284]
[1745050212004,25.32,138.8,138.75,5.75851284]
[1745050212505,5.75851284,138.79,138.75,5.75851284]
[1745050217306,5.75851284,138.79,138.74,25.3]
[1745050217307,5.75851284,138.79,138.74,31.05851284]
[1745050217504,5.75851284,138.79,138.73,5.75851284]
[1745050221211,4.8095743,138.78,138.73,5.75851284]
[1745050221413,9.15714977,138.77,138.73,5.75851284]
[1745050221711,4.34757547,138.77,138.73,5.75851284]
[1745050221911,4.34757547,138.76,138.73,5.75851284]
[1745050222411,5.75851284,138.79,138.73,5.75851284]
[1745050222615,4.80905013,138.78,138.73,5.75851284]
[1745050222905,9.1565541,138.77,138.73,5.75851284]
[1745050223109,4.34750397,138.77,138.73,5.75851284]
[1745050223511,4.34750397,138.76,138.73,5.75851284]
[1745050224012,5.75851284,138.79,138.73,5.75851284]
[1745050224214,4.80904642,138.78,138.73,5.75851284]
[1745050224413,9.15652347,138.77,138.73,5.75851284]
[1745050224713,4.34747705,138.77,138.73,5.75851284]
[1745050225415,4.34747705,138.76,138.73,5.75851284]
[1745050225916,5.75851284,138.79,138.73,5.75851284]
[1745050226217,4.80917827,138.78,138.73,5.75851284]
[1745050226514,4.80917827,138.77,138.73,5.75851284]
[1745050226713,4.34793973,138.77,138.73,5.75851284]
[1745050227015,4.34793973,138.76,138.73,5.75851284]
[1745050227513,5.75851284,138.79,138.73,5.75851284]
[1745050227715,4.81012962,138.78,138.73,5.75851284]
[1745050227914,4.81012962,138.77,138.73,5.75851284]
[1745050228117,4.34848047,138.78,138.73,5.75851284]
[1745050228415,9.15861009,138.77,138.73,5.75851284]
[1745050228615,4.34848047,138.77,138.73,5.75851284]
[1745050229023,4.34848047,138.76,138.73,5.75851284]
[1745050229516,5.75851284,138.79,138.73,5.75851284]
[1745050229816,9.16110707,138.78,138.73,5.75851284]
[1745050230016,9.16110707,138.77,138.73,5.75851284]
[1745050230218,4.34966423,138.77,138.73,5.75851284]
[1745050230719,4.34966423,138.76,138.73,5.75851284]
[1745050231418,4.34966423,138.75,138.73,5.75851284]
[1745050231616,5.75851284,138.79,138.73,5.75851284]
[1745050231817,9.1638274,138.78,138.73,5.75851284]
[1745050232018,4.81286977,138.77,138.73,5.75851284]
[1745050232318,4.35095763,138.76,138.73,5.75851284]
[1745050232617,4.35095763,138.75,138.73,5.75851284]
[1745050232919,4.35095763,138.75,138.73,12.96731284]
[1745050233217,25.32,138.8,138.74,25.3]
[1745050233419,4.81260906,138.79,138.75,5.75851284]
[1745050233616,4.81260906,138.78,138.75,5.75851284]
[1745050233814,9.16331431,138.77,138.75,5.75851284]
[1745050234016,4.35070525,138.77,138.75,5.75851284]
[1745050234217,4.35070525,138.76,138.75,5.75851284]
[1745050234815,4.35070525,138.76,138.74,25.3]
[1745050235221,4.35070525,138.75,138.74,25.3]
[1745050238323,25.32,138.8,138.74,25.3]
[1745050238523,4.81494498,138.79,138.76,5.75851284]
[1745050238720,4.81494498,138.78,138.76,5.75851284]
[1745050238921,4.81494498,138.77,138.76,5.75851284]
[1745050239221,9.16776272,138.77,138.76,5.75851284]
[1745050239425,4.35281774,138.77,138.76,5.75851284]
[1745050240622,4.35281774,138.77,138.74,31.05851284]
[1745050240823,5.75851284,138.79,138.74,31.05851284]
[1745050241016,4.81527457,138.78,138.74,31.05851284]
[1745050241219,5.75851284,138.79,138.74,31.05851284]
[1745050241416,4.81574917,138.78,138.74,31.05851284]
[1745050241623,5.75851284,138.79,138.74,31.05851284]
[1745050241922,9.16918777,138.78,138.74,31.05851284]
[1745050242120,4.35346802,138.78,138.74,31.05851284]
[1745050242317,4.35346802,138.77,138.74,31.05851284]
[1745050242521,4.35346802,138.77,138.76,5.75851284]
[1745050243621,4.0502,138.81,138.76,5.75851284]
[1745050243926,4.81657421,138.8,138.78,5.75851284]
[1745050244126,4.81657421,138.79,138.78,5.75851284]
[1745050244326,9.17075721,138.79,138.78,5.75851284]
[1745050244927,4.354183,138.79,138.78,5.75851284]
[1745050246633,4.354183,138.79,138.76,5.75851284]
[1745050246833,4.0502,138.81,138.76,5.75851284]
[1745050247031,4.81710347,138.8,138.76,5.75851284]
[1745050247234,4.81710347,138.79,138.76,5.75851284]
[1745050247433,4.0502,138.81,138.76,5.75851284]
[1745050247632,4.35603495,138.78,138.76,5.75851284]
[1745050247833,4.0502,138.81,138.76,5.75851284]
[1745050248136,4.81871689,138.8,138.76,5.75851284]
[1745050248435,9.1760297,138.79,138.76,5.75851284]
[1745050248727,4.35731281,138.78,138.76,5.75851284]
[1745050249636,4.35731281,138.77,138.76,5.75851284]
[1745050251256,4.35731281,138.77,138.76,12.96571284]
[1745050251440,9.87922206,138.77,138.76,12.96571284]
[1745050252034,9.87922206,138.77,138.76,5.75851284]
[1745050260247,9.87922206,138.77,138.74,31.05851284]
[1745050260444,9.87922206,138.76,138.74,31.05851284]
[1745050260645,5.52190925,138.75,138.74,31.05851284]
[1745050261045,9.87922206,138.75,138.74,31.05851284]
[1745050261644,9.87922206,138.75,138.74,5.75851284]
[1745050261847,9.87922206,138.75,138.72,31.03851284]
[1745050262050,5.52190925,138.74,138.72,31.03851284]
[1745050262247,5.52190925,138.73,138.72,31.03851284]
[1745050262546,9.87922206,138.73,138.72,31.03851284]
[1745050262848,9.72616713,138.73,138.72,31.03851284]
[1745050264343,4.35731281,138.73,138.72,31.03851284]
[1745050264651,9.72615558,138.73,138.72,31.03851284]
[1745050266945,9.72615558,138.73,138.72,25.28]
[1745050267247,9.72615558,138.73,138.7,31.05851284]
[1745050267549,5.36884277,138.72,138.7,31.05851284]
[1745050267750,5.36884277,138.71,138.7,31.05851284]
[1745050267946,4.35731281,138.72,138.7,31.05851284]
[1745050268153,5.36931861,138.71,138.7,31.05851284]
[1745050268451,9.72663142,138.71,138.7,31.05851284]
[1745050276462,4.35731281,138.71,138.7,31.05851284]
[1745050280570,9.70038962,138.71,138.7,31.05851284]
[1745050282971,9.70038962,138.71,138.7,25.3]
[1745050283574,9.70038962,138.71,138.69,5.75851284]
[1745050283773,5.34307681,138.7,138.67,31.05851284]
[1745050283971,9.70038962,138.69,138.67,25.3]
[1745050284274,4.35731281,138.69,138.67,31.05851284]
[1745050284471,4.35731281,138.68,138.67,31.05851284]
[1745050285375,1.9286,138.72,138.67,31.05851284]
[1745050285575,10.07779505,138.71,138.69,5.75851284]
[1745050285775,5.33880772,138.7,138.69,5.75851284]
[1745050285971,5.33880772,138.7,138.53,463.39168013]
[1745050286275,5.75851284,138.65,138.6,5.75851284]
[1745050286477,5.33231312,138.64,138.6,5.75851284]
[1745050286672,4.73898733,138.64,138.6,5.75851284]
[1745050286873,4.73898733,138.63,138.6,5.75851284]
[1745050287776,4.73898733,138.62,138.6,5.75851284]
[1745050288481,5.75851284,138.65,138.6,5.75851284]
[1745050288773,5.3221363,138.64,138.6,5.75851284]
[1745050288979,5.75851284,138.65,138.6,5.75851284]
[1745050288980,5.3221363,138.63,138.6,5.75851284]
[1745050289177,5.3211588,138.62,138.57,5.75851284]
[1745050289478,4.7195673,138.61,138.57,5.75851284]
[1745050289778,5.75851284,138.63,138.57,5.75851284]
[1745050289980,5.3168323,138.62,138.57,5.75851284]
[1745050290174,12.97261284,138.63,138.57,5.75851284]
[1745050290375,7.24742469,138.62,138.57,5.75851284]